{"text_format":"1","workbook":"xlsx","n_sheets":5,"sheets":["基本情報","申立書","申立事情説明書","宛名・書類受取届","管轄"],"not_rendered":{"charts":0,"images":0,"macros":0,"external_links":1,"defined_names":1,"comments":0,"pivot_tables":0},"unopened":[],"bounds":{"document_bytes":16777216,"sheet_cells":100000,"rows_first":2000,"rows_last":500,"rows_between":2000,"halvings":0,"cell_chars":16384,"cell_head_chars":4096},"cells_cut":0,"cells_raw":0,"read":"whole","date_system":"1900"}

{"sheet":"基本情報","index":0,"n_rows":28,"n_cols":6,"rows_kept":28,"cut":false,"hidden":false,"merged":[]}
[]
[null,"基本事件番号\n　　　　　　令和/平成",99,"年（家 ）第",99,"号"]
[null,"申立人の氏名のフリガナ","タクシ　タダノリ"]
[null,"申立人の氏名","卓氏忠典"]
[null,"添 付 書 類",true,"申立事情説明書    "]
[null,null,true,"死亡診断書の写し（死亡の記載のある戸籍謄本）"]
[null,null,true,"預貯金通帳の写し"]
[null,null,true,"寄託契約書案"]
[null,null,true,"報告書"]
[null,null,true,"その他(        　　　　　　　　　　    )"]
[null,"申立人の住所又は事務所","256けｎ"]
[null,"申立人の電話番号","999-999-9999"]
[null,"申立人の氏名のフリガナ",{"$f":"C3","v":"タクシ　タダノリ"}]
[null,"申立人の氏名",{"$f":"C4","v":"卓氏忠典"}]
[null,"成年被後見人の住所","naraken"]
[null,"成年被後見人の電話番号","000-000-02153"]
[null,"成年被後見人の氏名のフリガナ","ホンニン"]
[null,"成年被後見人の氏名","本人"]
[null,"申立ての趣旨（選択）",true,"■成年被後見人の（□死体の火葬 □ 　　　　　　　　　）に関する契約を締結する"]
[null,null,true,"■成年被後見人名義の下記 の預貯金の払戻しをする\n金融機関名（　　　　　　　　　　） 支店名（　　　　　　　　　　）\n口座種別(　　　　　　　　)口座番号（　　　　　　　　　　　　　）\n払戻金額 金　　　　　　　　　 円 \n"]
[null,null,true,"■(その他　　　　　　　　　　　　　　　　　　　　　　)"]
[]
[null,"本件申立てにかかる行為についての\n相続人の意思について",true,"■相続人の存在が明らかではないため，意思の確認がとれない。"]
[null,null,true,"■反対している相続人はいない。"]
[null,null,true,"■相続人の存在が明らかではないため，意思の確認がとれない。"]
[null,null,true,"■相続人が疎遠であり，意思の確認がとれない。"]
[null,null,true,"■相続人が所在不明のため，意思の確認がとれない。"]
[null,null,true,"■その他（　　　　　　　　　　　　）"]

{"sheet":"申立書","index":1,"n_rows":34,"n_cols":9,"rows_kept":34,"cut":false,"hidden":false,"merged":[]}
[]
[null,"受付印",null,null,"成年被後見人の死亡後の死体の火葬又は埋葬に関する"]
[null,null,null,null,"契約の締結その他相続財産の保存に必要な行為についての許可"]
[]
[null,null,null,null,"この欄に収入印紙800円分を貼る。"]
[null,"収入印紙",null,"円","（貼った印紙に押印しないでください。）"]
[null,"予納郵便切手",null,"円"]
[null,null,null,"準口頭",{"$f":"基本情報!B2","v":"基本事件番号\n　　　　　　令和/平成"},{"$f":"基本情報!C2","v":99},"年（家 ）第",{"$f":"基本情報!E2","v":99},"号"]
[null,{"$f":"管轄!A2","v":"那覇家庭裁判所"},null,"御中","申立て人の記名"]
[null,"令和/平成",{"$f":"TODAY()","v":"2021-10-12"},null,{"$f":"基本情報!C4","v":"卓氏忠典"},"印？"]
[null,"添付書類",{"$f":"IF(基本情報!C5=TRUE,\"■申立事情説明書\",\"\")","v":"■申立事情説明書"},null,{"$f":"IF(基本情報!C7=TRUE,\"■預貯金通帳の写し\",\"\")","v":"■預貯金通帳の写し"},{"$f":"IF(基本情報!C8=TRUE,\"■寄託契約書案\",\"\")","v":"■寄託契約書案"}]
[null,null,{"$f":"IF(基本情報!C6=TRUE,\"■死亡診断書の写し（死亡の記載のある戸籍謄本）\",\"\")","v":"■死亡診断書の写し（死亡の記載のある戸籍謄本）"},null,null,{"$f":"IF(基本情報!C9=TRUE,\"■報告書\",\"\")","v":"■報告書"}]
[null,null,{"$f":"IF(基本情報!C10=TRUE,\"■その他（＿＿＿＿＿＿＿＿＿＿＿＿＿＿＿＿＿＿＿＿）\",\"\")","v":"■その他（＿＿＿＿＿＿＿＿＿＿＿＿＿＿＿＿＿＿＿＿）"}]
[null,"申立人","住 所 又 は 事 務 所",null,"〒"]
[null,null,null,null,{"$f":"基本情報!C11","v":"256けｎ"}]
[null,null,"フリガナ",null,{"$f":"基本情報!C13","v":"タクシ　タダノリ"},{"$f":"基本情報!C12","v":"999-999-9999"}]
[null,null,"氏 名",null,{"$f":"基本情報!C14","v":"卓氏忠典"}]
[null,"成 年 被 後 見 人","住 所",null,"〒"]
[null,null,null,null,{"$f":"基本情報!C15","v":"naraken"}]
[null,null,"フリガナ",null,{"$f":"基本情報!C17","v":"ホンニン"}]
[null,null,"氏 名",null,{"$f":"基本情報!C18","v":"本人"}]
[null,"申立ての趣旨","申立人が"]
[null,null,{"$f":"IF(基本情報!C19=TRUE,\"■成年被後見人の（□死体の火葬 □ 　　　　　　　　　）に関する契約を締結する\",\"\")","v":"■成年被後見人の（□死体の火葬 □ 　　　　　　　　　）に関する契約を締結する"}]
[null,null,{"$f":"IF(基本情報!C21=TRUE,\"■成年被後見人名義の下記 の預貯金の払戻しをする。\",\"\")","v":"■成年被後見人名義の下記 の預貯金の払戻しをする。"}]
[null,null,{"$f":"IF(基本情報!C20=TRUE,\"金融機関名（　　　　　　　　　　） 支店名（　　　　　　　　　　）口座種別(　　　　　　　　)\",\"\")","v":"金融機関名（　　　　　　　　　　） 支店名（　　　　　　　　　　）口座種別(　　　　　　　　)"}]
[null,null,{"$f":"IF(基本情報!C20=TRUE,\"口座種別(　　　　　　　　)口座番号（　　　　　　　　　　　　　）払戻金額 金　　　　　　　　　 円\",\"\")","v":"口座種別(　　　　　　　　)口座番号（　　　　　　　　　　　　　）払戻金額 金　　　　　　　　　 円"}]
[null,null,{"$f":"IF(基本情報!C23=TRUE,\"■(その他　　　　　　　　　　　　　　　　　　　　　　)\",\"\")","v":"■(その他　　　　　　　　　　　　　　　　　　　　　　)"}]
[null,null,"ことを許可する旨の 審判を求める。"]
[null,"申立ての理由 ","別添申立事情説明書のとおり"]
[null,null,null,null,"裁判所使用欄"]
[null,"1 本件申立てを許可する。  "]
[null,"2 手続費用は，申立人の負担とする。"]
[null," 　　年 　　月 　　日 　　家庭裁判所 □ 支部 □ 出張所 "]
[null,"裁 判 官"]

{"sheet":"申立事情説明書","index":2,"n_rows":19,"n_cols":12,"rows_kept":19,"cut":false,"hidden":false,"merged":[]}
[null,{"$f":"基本情報!B2","v":"基本事件番号\n　　　　　　令和/平成"},null,null,null,{"$f":"基本情報!C2","v":99},"年（家 ）第",{"$f":"基本情報!E2","v":99},"号","成年被後見人亡　　　　　　　　　　　　　　　　　",null,{"$f":"基本情報!C18","v":"本人"}]
[null,"申立事情説明書"]
[null,"１ 申立ての理由・必要性等について"]
[]
[]
[]
[]
[]
[]
[]
[null,"※ 申立ての理由・必要性等を裏付ける資料がある場合には，資料を添付してください"]
[]
[null,"２ 本件申立てにかかる行為ついての相続人の意思について"]
[null,{"$f":"IF(基本情報!C23=TRUE,\"■相続人の存在が明らかではないため，意思の確認がとれない。\",\"\")","v":"■相続人の存在が明らかではないため，意思の確認がとれない。"}]
[null,{"$f":"IF(基本情報!C24=TRUE,\"■反対している相続人はいない。\",\"\")","v":"■反対している相続人はいない。"}]
[null,{"$f":"IF(基本情報!C25=TRUE,\"■相続人が疎遠であり，意思の確認がとれない。\",\"\")","v":"■相続人が疎遠であり，意思の確認がとれない。"}]
[null,{"$f":"IF(基本情報!C26=TRUE,\"■相続人の存在が明らかではないため，意思の確認がとれない。\",\"\")","v":"■相続人の存在が明らかではないため，意思の確認がとれない。"}]
[null,{"$f":"IF(基本情報!C27=TRUE,\"■相続人が所在不明のため，意思の確認がとれない。\",\"\")","v":"■相続人が所在不明のため，意思の確認がとれない。"}]
[null,{"$f":"IF(基本情報!C28=TRUE,\"■その他\",\"\")","v":"■その他"}]

{"sheet":"宛名・書類受取届","index":3,"n_rows":19,"n_cols":4,"rows_kept":19,"cut":false,"hidden":false,"merged":[[0,0,0,5],[1,5,3,5],[2,0,2,2],[17,0,17,1],[17,2,17,5],[7,2,7,4],[8,2,8,4],[9,2,9,4],[7,5,9,5],[14,0,14,1],[14,2,14,5],[10,0,10,1],[10,2,10,5],[7,0,7,1],[8,0,8,1],[9,0,9,1],[18,0,18,1],[18,2,18,5],[15,0,15,1],[15,2,15,5],[16,0,16,1],[16,2,16,5]]}
["送達場所届出書"]
[]
[{"$f":"管轄!A2","v":"那覇家庭裁判所"},null,null," 御中"]
[]
[{"$f":"申立書!E10","v":"卓氏忠典"}]
[]
["【届出人】"]
["氏名",null,{"$f":"+[1]申述書!C15","v":0}]
["本籍",null,{"$f":"+[1]申述書!C16","v":0}]
["住所",null,{"$f":"+[1]申述書!C17","v":0}]
["連絡先電話番号",null,{"$f":"+[1]申述書!C18","v":0}]
[]
["本日、相続放棄申述した事件につき、送達受取人を下記のとおり届出ます。"]
[]
["送達場所",null,"〒"]
["送達受取人"]
["電話番号"]
["ファックス番号"]
["申立人との関係"]

{"sheet":"管轄","index":4,"n_rows":10,"n_cols":5,"rows_kept":10,"cut":false,"hidden":false,"merged":[]}
["事件の管轄裁判所",null,"〒",null,"住所"]
["那覇家庭裁判所",null,"選択",null,"選択"]
["那覇家庭裁判所",null,"〒900-8603",null,"沖縄県那覇市樋川1-14-10"]
["那覇家庭裁判所石垣支部",null,"〒906-0012",null,"沖縄県那覇市樋川1-14-10"]
["那覇家庭裁判所名護支部",null,"〒905-0011",null,"沖縄県名護市字宮里451-3"]
["那覇家庭裁判 沖縄支部",null,"〒904-2194",null,"沖縄県沖縄市知花6-7-7"]
["那覇家庭裁判所 平良支部",null,"〒522-0061",null,"沖縄県宮古島市平良字西里345"]
["那覇家庭裁判所 平良支部",null,"〒906-0012",null,"沖縄県宮古島市平良字西里345"]
["那覇家庭裁判所石垣支部",null,"〒906-0012",null,"沖縄県石垣市字登野城55"]
["那覇家庭裁判所石垣支部",null,"〒906-0012",null,"沖縄県石垣市字登野城55"]